[Event "Titled Tuesday Blitz June 8 2021"]
[White "Willow, Jonah B"]
[Black "Andreikin, Dmitry"]
[WhiteFideId "438804"]
[BlackFideId "4158814"]
[WhiteElo "2261"]
[BlackElo "2782"]
[Result "0-1"]
[Round "04"]
[TimeControl "180+1"]
[Date "2021.06.08"]
[WhiteClock "0:00:08"]
[BlackClock "0:01:01"]

1. e4 {[%clk 0:03:00]}  e6 {[%clk 0:03:00]} 2. d4 {[%clk 0:03:00]}  d5 {[%clk 0:03:00]} 3. Nd2 {[%clk 0:03:01]}  c5 {[%clk 0:02:57]} 4. Ngf3 {[%clk 0:03:01]}  Nf6 {[%clk 0:02:56]} 5. exd5 {[%clk 0:02:53]}  Nxd5 {[%clk 0:02:57]} 6. Nb3 {[%clk 0:02:50]}  Nd7 {[%clk 0:02:55]} 7. g3 {[%clk 0:02:49]}  b6 {[%clk 0:02:42]} 8. Bg2 {[%clk 0:02:45]}  Ba6 {[%clk 0:02:37]} 9. Bg5 {[%clk 0:02:30]}  Be7 {[%clk 0:02:30]} 10. Bxe7 {[%clk 0:02:29]}  Qxe7 {[%clk 0:02:30]} 11. dxc5 {[%clk 0:02:20]}  Rc8 {[%clk 0:02:02]} 12. Qd4 {[%clk 0:01:58]}  O-O {[%clk 0:01:55]} 13. cxb6 {[%clk 0:01:38]}  Rxc2 {[%clk 0:01:46]} 14. Bf1 {[%clk 0:01:24]}  Bb7 {[%clk 0:01:34]} 15. Bd3 {[%clk 0:01:16]}  Nb4 {[%clk 0:01:31]} 16. Nbd2 {[%clk 0:00:34]}  Nc5 {[%clk 0:01:11]} 17. Be2 {[%clk 0:00:20]}  Rd8 {[%clk 0:01:09]} 18. Qg4 {[%clk 0:00:09]}  f5 {[%clk 0:01:02]} 19. Qf4 {[%clk 0:00:08]}  Ncd3+ {[%clk 0:01:01]} 0-1


[Site "https://www.chess.com"]

[Event "Titled Tuesday Blitz June 8 2021"]
[White "Xiong, Jeffery"]
[Black "Petesch, Gabriel"]
[WhiteFideId "2047640"]
[BlackFideId "2032465"]
[WhiteElo "2724"]
[BlackElo "2374"]
[Result "1-0"]
[Round "04"]
[TimeControl "180+1"]
[Date "2021.06.08"]
[WhiteClock "0:01:51"]
[BlackClock "0:00:32"]

1. d4 {[%clk 0:03:00]}  d5 {[%clk 0:02:58]} 2. c4 {[%clk 0:03:01]}  e6 {[%clk 0:02:56]} 3. Nf3 {[%clk 0:02:59]}  Nf6 {[%clk 0:02:54]} 4. g3 {[%clk 0:03:00]}  Be7 {[%clk 0:02:54]} 5. Bg2 {[%clk 0:03:00]}  O-O {[%clk 0:02:52]} 6. O-O {[%clk 0:03:01]}  Nbd7 {[%clk 0:02:51]} 7. Qd3 {[%clk 0:02:58]}  c6 {[%clk 0:02:47]} 8. Nc3 {[%clk 0:02:57]}  b6 {[%clk 0:02:37]} 9. e4 {[%clk 0:02:58]}  Ba6 {[%clk 0:02:34]} 10. b3 {[%clk 0:02:58]}  dxe4 {[%clk 0:02:28]} 11. Nxe4 {[%clk 0:02:59]}  b5 {[%clk 0:02:21]} 12. Nxf6+ {[%clk 0:02:33]}  Bxf6 {[%clk 0:02:16]} 13. Be3 {[%clk 0:02:26]}  bxc4 {[%clk 0:02:09]} 14. bxc4 {[%clk 0:02:27]}  Rb8 {[%clk 0:02:07]} 15. Rac1 {[%clk 0:02:10]}  Qa5 {[%clk 0:02:05]} 16. Nd2 {[%clk 0:02:10]}  Rfc8 {[%clk 0:01:58]} 17. Ne4 {[%clk 0:02:04]}  Qxa2 {[%clk 0:01:43]} 18. Nd6 {[%clk 0:02:04]}  Rd8 {[%clk 0:01:17]} 19. Ra1 {[%clk 0:02:04]}  Nc5 {[%clk 0:01:17]} 20. Qd1 {[%clk 0:01:55]}  Qb3 {[%clk 0:00:54]} 21. dxc5 {[%clk 0:01:54]}  Bxa1 {[%clk 0:00:52]} 22. Qxb3 {[%clk 0:01:53]}  Rxb3 {[%clk 0:00:50]} 23. Rxa1 {[%clk 0:01:54]}  Bc8 {[%clk 0:00:34]} 24. Bxc6 {[%clk 0:01:52]}  e5 {[%clk 0:00:32]} 25. Nxc8 {[%clk 0:01:51]}  Rxc8 {[%clk 0:00:32]} 26. Bd7 {[%clk 0:01:51]} 1-0


[Site "https://www.chess.com"]

[Event "Titled Tuesday Blitz June 8 2021"]
[White "Yilmaz, Mustafa"]
[Black "Hambleton, Aman"]
[WhiteFideId "6302718"]
[BlackFideId "2606577"]
[WhiteElo "2518"]
[BlackElo "2552"]
[Result "1-0"]
[Round "04"]
[TimeControl "180+1"]
[Date "2021.06.08"]
[WhiteClock "0:00:07"]
[BlackClock "0:00:01"]

1. d4 {[%clk 0:03:00]}  Nf6 {[%clk 0:02:57]} 2. c4 {[%clk 0:03:00]}  e6 {[%clk 0:02:56]} 3. Nf3 {[%clk 0:03:00]}  b6 {[%clk 0:02:53]} 4. g3 {[%clk 0:03:00]}  Ba6 {[%clk 0:02:51]} 5. Nbd2 {[%clk 0:02:59]}  Bb4 {[%clk 0:02:49]} 6. Qb3 {[%clk 0:02:56]}  Nc6 {[%clk 0:02:30]} 7. Bg2 {[%clk 0:02:49]}  Bb7 {[%clk 0:01:24]} 8. O-O {[%clk 0:02:44]}  Bxd2 {[%clk 0:01:21]} 9. Bxd2 {[%clk 0:02:43]}  O-O {[%clk 0:01:18]} 10. Qc2 {[%clk 0:02:43]}  Ne7 {[%clk 0:01:16]} 11. b4 {[%clk 0:02:34]}  d6 {[%clk 0:01:09]} 12. a4 {[%clk 0:02:34]}  Be4 {[%clk 0:01:03]} 13. Qb3 {[%clk 0:02:33]}  h6 {[%clk 0:01:01]} 14. Rfc1 {[%clk 0:02:33]}  Nf5 {[%clk 0:00:58]} 15. Bc3 {[%clk 0:02:32]}  Re8 {[%clk 0:00:56]} 16. Bh3 {[%clk 0:02:19]}  Bxf3 {[%clk 0:00:38]} 17. exf3 {[%clk 0:02:19]}  d5 {[%clk 0:00:39]} 18. c5 {[%clk 0:02:12]}  bxc5 {[%clk 0:00:25]} 19. dxc5 {[%clk 0:02:11]}  d4 {[%clk 0:00:23]} 20. Rd1 {[%clk 0:02:07]}  Qd5 {[%clk 0:00:19]} 21. Qxd5 {[%clk 0:01:50]}  Nxd5 {[%clk 0:00:20]} 22. Bxd4 {[%clk 0:01:50]}  Nxb4 {[%clk 0:00:20]} 23. Bc3 {[%clk 0:01:50]}  Nc6 {[%clk 0:00:17]} 24. Rd7 {[%clk 0:01:49]}  Rac8 {[%clk 0:00:13]} 25. Rb1 {[%clk 0:01:49]}  Red8 {[%clk 0:00:11]} 26. Rxd8+ {[%clk 0:01:38]}  Nxd8 {[%clk 0:00:11]} 27. Bf1 {[%clk 0:01:33]}  Nc6 {[%clk 0:00:08]} 28. Rb7 {[%clk 0:01:29]}  Nfe7 {[%clk 0:00:08]} 29. Ba6 {[%clk 0:01:25]}  Nd5 {[%clk 0:00:07]} 30. Bd2 {[%clk 0:01:22]}  Rb8 {[%clk 0:00:06]} 31. Rb5 {[%clk 0:01:17]}  Rd8 {[%clk 0:00:04]} 32. Kg2 {[%clk 0:01:15]}  Kf8 {[%clk 0:00:02]} 33. Bb7 {[%clk 0:01:14]}  Nde7 {[%clk 0:00:02]} 34. Bf4 {[%clk 0:01:14]}  Rd7 {[%clk 0:00:01]} 35. Ba8 {[%clk 0:01:10]}  f6 {[%clk 0:00:02]} 36. Bb7 {[%clk 0:01:05]}  e5 {[%clk 0:00:02]} 37. Bc1 {[%clk 0:01:05]}  Nd4 {[%clk 0:00:02]} 38. Rb2 {[%clk 0:01:04]}  Nec6 {[%clk 0:00:03]} 39. Be3 {[%clk 0:01:01]}  Rd8 {[%clk 0:00:02]} 40. Ba6 {[%clk 0:00:56]}  Ke7 {[%clk 0:00:02]} 41. f4 {[%clk 0:00:54]}  Kd7 {[%clk 0:00:02]} 42. fxe5 {[%clk 0:00:53]}  fxe5 {[%clk 0:00:03]} 43. Rd2 {[%clk 0:00:37]}  Ke7 {[%clk 0:00:03]} 44. Rb2 {[%clk 0:00:27]}  Ne6 {[%clk 0:00:02]} 45. Bc4 {[%clk 0:00:24]}  Rb8 {[%clk 0:00:02]} 46. Rxb8 {[%clk 0:00:13]}  Nxb8 {[%clk 0:00:03]} 47. Kf3 {[%clk 0:00:14]}  Nc6 {[%clk 0:00:02]} 48. Ke4 {[%clk 0:00:15]}  Kd7 {[%clk 0:00:02]} 49. Bb5 {[%clk 0:00:13]}  Nd8 {[%clk 0:00:01]} 50. Kd5 {[%clk 0:00:14]}  a6 {[%clk 0:00:02]} 51. Be2 {[%clk 0:00:13]}  Ne6 {[%clk 0:00:01]} 52. Bg4 {[%clk 0:00:13]}  Nd8 {[%clk 0:00:01]} 53. Kxe5 {[%clk 0:00:13]}  Ke7 {[%clk 0:00:02]} 54. h4 {[%clk 0:00:12]}  Nc6+ {[%clk 0:00:02]} 55. Ke4 {[%clk 0:00:12]}  Nb4 {[%clk 0:00:02]} 56. Bd2 {[%clk 0:00:11]}  Nc6 {[%clk 0:00:02]} 57. Kd5 {[%clk 0:00:11]}  Ncd8 {[%clk 0:00:02]} 58. c6 {[%clk 0:00:12]}  Nf8 {[%clk 0:00:02]} 59. Bb4+ {[%clk 0:00:11]}  Kf7 {[%clk 0:00:03]} 60. h5 {[%clk 0:00:10]}  Nh7 {[%clk 0:00:03]} 61. Bf3 {[%clk 0:00:08]}  Nf6+ {[%clk 0:00:03]} 62. Ke5 {[%clk 0:00:08]}  Ne8 {[%clk 0:00:01]} 63. Bd5+ {[%clk 0:00:07]} 1-0


[Site "https://www.chess.com"]

[Event "Titled Tuesday Blitz June 8 2021"]
[White "Abdusattorov, Nodirbek"]
[Black "Nesterov, Arseniy"]
[WhiteFideId "14204118"]
[BlackFideId "24198455"]
[WhiteElo "2662"]
[BlackElo "2441"]
[Result "1-0"]
[Round "05"]
[TimeControl "180+1"]
[Date "2021.06.08"]
[WhiteClock "0:00:58"]
[BlackClock "0:00:04"]

1. d4 {[%clk 0:03:00]}  d5 {[%clk 0:02:59]} 2. Nf3 {[%clk 0:03:00]}  Nf6 {[%clk 0:02:59]} 3. c4 {[%clk 0:02:59]}  c6 {[%clk 0:02:58]} 4. g3 {[%clk 0:02:59]}  g6 {[%clk 0:02:56]} 5. Bg2 {[%clk 0:02:59]}  Bg7 {[%clk 0:02:57]} 6. O-O {[%clk 0:02:59]}  O-O {[%clk 0:02:57]} 7. Qb3 {[%clk 0:02:56]}  dxc4 {[%clk 0:02:46]} 8. Qxc4 {[%clk 0:02:56]}  Bg4 {[%clk 0:02:41]} 9. Nc3 {[%clk 0:02:52]}  Nbd7 {[%clk 0:02:41]} 10. Rd1 {[%clk 0:02:52]}  Nb6 {[%clk 0:02:36]} 11. Qb3 {[%clk 0:02:50]}  Be6 {[%clk 0:02:02]} 12. Qc2 {[%clk 0:02:50]}  Nfd5 {[%clk 0:01:58]} 13. e4 {[%clk 0:02:44]}  Nb4 {[%clk 0:01:58]} 14. Qe2 {[%clk 0:02:27]}  Bc4 {[%clk 0:01:53]} 15. Qd2 {[%clk 0:02:27]}  Nd3 {[%clk 0:01:48]} 16. b3 {[%clk 0:02:22]}  Ba6 {[%clk 0:01:47]} 17. Ba3 {[%clk 0:02:19]}  Bxd4 {[%clk 0:01:24]} 18. Nxd4 {[%clk 0:02:18]}  Qxd4 {[%clk 0:01:25]} 19. Bxe7 {[%clk 0:02:15]}  Rfe8 {[%clk 0:01:25]} 20. Bg5 {[%clk 0:02:08]}  Nd7 {[%clk 0:01:10]} 21. Be3 {[%clk 0:02:02]}  Qb4 {[%clk 0:00:56]} 22. Qc2 {[%clk 0:01:43]}  N7e5 {[%clk 0:00:50]} 23. a3 {[%clk 0:01:39]}  Qe7 {[%clk 0:00:43]} 24. h3 {[%clk 0:01:39]}  Nc5 {[%clk 0:00:34]} 25. f4 {[%clk 0:01:32]}  Ned7 {[%clk 0:00:28]} 26. b4 {[%clk 0:01:32]}  Ne6 {[%clk 0:00:27]} 27. e5 {[%clk 0:01:33]}  Nb6 {[%clk 0:00:24]} 28. Ne4 {[%clk 0:01:32]}  Nd5 {[%clk 0:00:23]} 29. Rxd5 {[%clk 0:01:30]}  cxd5 {[%clk 0:00:24]} 30. Nf6+ {[%clk 0:01:31]}  Kg7 {[%clk 0:00:23]} 31. f5 {[%clk 0:01:26]}  Rec8 {[%clk 0:00:20]} 32. Qf2 {[%clk 0:01:22]}  d4 {[%clk 0:00:05]} 33. Bd2 {[%clk 0:01:15]}  gxf5 {[%clk 0:00:04]} 34. Qxf5 {[%clk 0:01:15]}  Nf8 {[%clk 0:00:05]} 35. Bh6+ {[%clk 0:00:57]}  Kxh6 {[%clk 0:00:03]} 36. Ng8+ {[%clk 0:00:57]}  Kg7 {[%clk 0:00:03]} 37. Nxe7 {[%clk 0:00:58]}  Ng6 {[%clk 0:00:04]} 38. Nxc8 {[%clk 0:00:58]} 1-0


[Site "https://www.chess.com"]

[Event "Titled Tuesday Blitz June 8 2021"]
[White "Abdyzhapar, Asylbek"]
[Black "Gumularz, Szymon"]
[WhiteFideId "13800337"]
[BlackFideId "1188062"]
[WhiteElo "2383"]
[BlackElo "2384"]
[Result "0-1"]
[Round "05"]
[TimeControl "180+1"]
[Date "2021.06.08"]
[WhiteClock "0:01:01"]
[BlackClock "0:01:15"]

1. d4 {[%clk 0:02:59]}  Nf6 {[%clk 0:02:56]} 2. Bf4 {[%clk 0:02:58]}  c5 {[%clk 0:02:54]} 3. d5 {[%clk 0:02:58]}  b5 {[%clk 0:02:53]} 4. c4 {[%clk 0:02:56]}  g6 {[%clk 0:02:41]} 5. cxb5 {[%clk 0:02:54]}  Bg7 {[%clk 0:02:41]} 6. Nc3 {[%clk 0:02:53]}  O-O {[%clk 0:02:40]} 7. a4 {[%clk 0:02:53]}  a6 {[%clk 0:02:39]} 8. e3 {[%clk 0:02:53]}  axb5 {[%clk 0:02:38]} 9. Bxb5 {[%clk 0:02:53]}  d6 {[%clk 0:02:33]} 10. Nge2 {[%clk 0:02:52]}  Na6 {[%clk 0:02:32]} 11. O-O {[%clk 0:02:52]}  Nb4 {[%clk 0:02:33]} 12. e4 {[%clk 0:02:50]}  Ba6 {[%clk 0:02:27]} 13. h3 {[%clk 0:02:41]}  Nd7 {[%clk 0:02:27]} 14. Qd2 {[%clk 0:02:37]}  Ne5 {[%clk 0:02:26]} 15. b3 {[%clk 0:02:22]}  Bxb5 {[%clk 0:02:17]} 16. Nxb5 {[%clk 0:02:11]}  Qd7 {[%clk 0:02:07]} 17. Bh6 {[%clk 0:02:06]}  Bxh6 {[%clk 0:01:44]} 18. Qxh6 {[%clk 0:02:04]}  f6 {[%clk 0:01:44]} 19. f4 {[%clk 0:01:49]}  Nf7 {[%clk 0:01:42]} 20. Qh4 {[%clk 0:01:47]}  Kh8 {[%clk 0:01:37]} 21. Nec3 {[%clk 0:01:44]}  Rg8 {[%clk 0:01:32]} 22. Qf2 {[%clk 0:01:39]}  g5 {[%clk 0:01:28]} 23. f5 {[%clk 0:01:39]}  g4 {[%clk 0:01:29]} 24. h4 {[%clk 0:01:36]}  g3 {[%clk 0:01:29]} 25. Qe3 {[%clk 0:01:34]}  Rg4 {[%clk 0:01:26]} 26. Qf3 {[%clk 0:01:27]}  Ne5 {[%clk 0:01:25]} 27. Qe2 {[%clk 0:01:23]}  Qe8 {[%clk 0:01:16]} 28. Nc7 {[%clk 0:01:17]}  Qh5 {[%clk 0:01:15]} 29. Rf4 {[%clk 0:01:02]}  Qxh4 {[%clk 0:01:14]} 30. Rxg4 {[%clk 0:01:01]}  Qh2+ {[%clk 0:01:14]} 31. Kf1 {[%clk 0:01:01]}  Qh1# {[%clk 0:01:15]} 0-1


[Site "https://www.chess.com"]

[Event "Titled Tuesday Blitz June 8 2021"]
[White "Aditya Mittal"]
[Black "Hristodorescu, Daniel"]
[WhiteFideId "35042025"]
[BlackFideId "1203100"]
[WhiteElo "2171"]
[BlackElo "2175"]
[Result "1-0"]
[Round "05"]
[TimeControl "180+1"]
[Date "2021.06.08"]
[WhiteClock "0:00:48"]
[BlackClock "0:00:35"]

1. Nf3 {[%clk 0:03:00]}  Nf6 {[%clk 0:02:57]} 2. g3 {[%clk 0:03:01]}  g6 {[%clk 0:02:55]} 3. Bg2 {[%clk 0:03:01]}  Bg7 {[%clk 0:02:56]} 4. c4 {[%clk 0:02:59]}  O-O {[%clk 0:02:57]} 5. O-O {[%clk 0:02:59]}  c6 {[%clk 0:02:56]} 6. d3 {[%clk 0:02:55]}  d5 {[%clk 0:02:52]} 7. Qc2 {[%clk 0:02:55]}  Nbd7 {[%clk 0:02:43]} 8. Bf4 {[%clk 0:02:53]}  Re8 {[%clk 0:02:42]} 9. cxd5 {[%clk 0:02:51]}  Nxd5 {[%clk 0:02:39]} 10. Bd2 {[%clk 0:02:51]}  Qb6 {[%clk 0:02:30]} 11. Nc3 {[%clk 0:02:50]}  e5 {[%clk 0:02:12]} 12. a3 {[%clk 0:02:40]}  N7f6 {[%clk 0:02:07]} 13. Rac1 {[%clk 0:02:28]}  Nxc3 {[%clk 0:02:04]} 14. Bxc3 {[%clk 0:02:21]}  Nd5 {[%clk 0:02:00]} 15. Bd2 {[%clk 0:02:22]}  a5 {[%clk 0:01:52]} 16. b3 {[%clk 0:02:15]}  h6 {[%clk 0:01:43]} 17. h3 {[%clk 0:02:15]}  Be6 {[%clk 0:01:42]} 18. Rb1 {[%clk 0:02:12]}  Qd8 {[%clk 0:01:27]} 19. Rfc1 {[%clk 0:02:03]}  Qd7 {[%clk 0:01:27]} 20. Kh2 {[%clk 0:02:02]}  Nc7 {[%clk 0:01:18]} 21. Bc3 {[%clk 0:01:57]}  Nb5 {[%clk 0:01:18]} 22. Bxe5 {[%clk 0:01:30]}  Nxa3 {[%clk 0:01:17]} 23. Qb2 {[%clk 0:01:28]}  Bxe5 {[%clk 0:01:09]} 24. Nxe5 {[%clk 0:01:28]}  Qd6 {[%clk 0:01:03]} 25. Ra1 {[%clk 0:01:16]}  Nb5 {[%clk 0:01:03]} 26. f4 {[%clk 0:01:05]}  Bd5 {[%clk 0:00:54]} 27. Ng4 {[%clk 0:00:53]}  Bxg2 {[%clk 0:00:38]} 28. Nxh6+ {[%clk 0:00:48]}  Kh7 {[%clk 0:00:35]} 29. Nxf7 {[%clk 0:00:48]} 1-0


[Site "https://www.chess.com"]

[Event "Titled Tuesday Blitz June 8 2021"]
[White "Annaberdiyev, Babageldi"]
[Black "Baskin, Robert"]
[WhiteFideId "14000385"]
[BlackFideId "24662402"]
[WhiteElo "2332"]
[BlackElo "2462"]
[Result "1/2-1/2"]
[Round "05"]
[TimeControl "180+1"]
[Date "2021.06.08"]
[WhiteClock "0:00:40"]
[BlackClock "0:00:46"]

1. e4 {[%clk 0:03:00]}  c6 {[%clk 0:02:58]} 2. d4 {[%clk 0:03:00]}  d5 {[%clk 0:02:59]} 3. Nd2 {[%clk 0:03:00]}  dxe4 {[%clk 0:02:59]} 4. Nxe4 {[%clk 0:03:01]}  Nf6 {[%clk 0:02:59]} 5. Nxf6+ {[%clk 0:03:00]}  exf6 {[%clk 0:03:00]} 6. Bc4 {[%clk 0:03:01]}  Bd6 {[%clk 0:03:00]} 7. Qe2+ {[%clk 0:03:00]}  Qe7 {[%clk 0:02:50]} 8. Qxe7+ {[%clk 0:02:59]}  Kxe7 {[%clk 0:02:51]} 9. Ne2 {[%clk 0:03:00]}  Re8 {[%clk 0:02:50]} 10. Bf4 {[%clk 0:02:55]}  Bxf4 {[%clk 0:02:50]} 11. Nxf4 {[%clk 0:02:56]}  Kf8+ {[%clk 0:02:50]} 12. Kd2 {[%clk 0:02:52]}  Bf5 {[%clk 0:02:36]} 13. Rhe1 {[%clk 0:02:50]}  Nd7 {[%clk 0:02:36]} 14. Bd3 {[%clk 0:02:11]}  Bg6 {[%clk 0:02:26]} 15. Rxe8+ {[%clk 0:02:09]}  Rxe8 {[%clk 0:02:25]} 16. Re1 {[%clk 0:02:09]}  Rd8 {[%clk 0:02:25]} 17. c3 {[%clk 0:02:00]}  c5 {[%clk 0:02:18]} 18. Ne2 {[%clk 0:01:59]}  Ne5 {[%clk 0:02:13]} 19. Bxg6 {[%clk 0:01:55]}  hxg6 {[%clk 0:02:12]} 20. Kc2 {[%clk 0:01:55]}  cxd4 {[%clk 0:02:09]} 21. Nxd4 {[%clk 0:01:56]}  Ng4 {[%clk 0:02:10]} 22. f3 {[%clk 0:01:49]}  Ne5 {[%clk 0:02:10]} 23. a4 {[%clk 0:01:47]}  a6 {[%clk 0:02:05]} 24. a5 {[%clk 0:01:43]}  Nc4 {[%clk 0:01:59]} 25. b4 {[%clk 0:01:43]}  f5 {[%clk 0:01:58]} 26. Re2 {[%clk 0:01:38]}  f4 {[%clk 0:01:49]} 27. Kb3 {[%clk 0:01:38]}  Ne3 {[%clk 0:01:48]} 28. Nc2 {[%clk 0:01:35]}  Nf1 {[%clk 0:01:44]} 29. Re1 {[%clk 0:01:27]}  Nd2+ {[%clk 0:01:42]} 30. Ka4 {[%clk 0:01:24]}  Rd3 {[%clk 0:01:34]} 31. Rd1 {[%clk 0:01:23]}  Ke7 {[%clk 0:01:18]} 32. Nd4 {[%clk 0:01:15]}  Nc4 {[%clk 0:01:14]} 33. Rxd3 {[%clk 0:01:14]}  Nb2+ {[%clk 0:01:14]} 34. Kb3 {[%clk 0:01:15]}  Nxd3 {[%clk 0:01:15]} 35. Kc4 {[%clk 0:01:08]}  Ne1 {[%clk 0:01:14]} 36. Kc5 {[%clk 0:01:04]}  Kd7 {[%clk 0:01:12]} 37. Kb6 {[%clk 0:00:59]}  Kc8 {[%clk 0:01:12]} 38. g3 {[%clk 0:00:59]}  g5 {[%clk 0:01:11]} 39. gxf4 {[%clk 0:00:55]}  gxf4 {[%clk 0:01:11]} 40. c4 {[%clk 0:00:56]}  g5 {[%clk 0:01:08]} 41. h3 {[%clk 0:00:54]}  f5 {[%clk 0:01:02]} 42. b5 {[%clk 0:00:46]}  axb5 {[%clk 0:00:52]} 43. cxb5 {[%clk 0:00:47]}  g4 {[%clk 0:00:48]} 44. hxg4 {[%clk 0:00:40]}  fxg4 {[%clk 0:00:48]} 45. fxg4 {[%clk 0:00:40]}  f3 {[%clk 0:00:48]} 46. Nxf3 {[%clk 0:00:39]}  Nxf3 {[%clk 0:00:48]} 47. a6 {[%clk 0:00:40]}  bxa6 {[%clk 0:00:47]} 48. bxa6 {[%clk 0:00:41]}  Kb8 {[%clk 0:00:46]} 49. a7+ {[%clk 0:00:38]}  Ka8 {[%clk 0:00:46]} 50. Ka6 {[%clk 0:00:39]}  Ng5 {[%clk 0:00:45]} 51. Kb6 {[%clk 0:00:39]}  Nf3 {[%clk 0:00:46]} 52. Ka6 {[%clk 0:00:40]}  Ng5 {[%clk 0:00:46]} 53. Kb6 {[%clk 0:00:40]}  Nf3 {[%clk 0:00:46]} 1/2-1/2


[Site "https://www.chess.com"]

[Event "Titled Tuesday Blitz June 8 2021"]
[White "Borsuk, Konstantin"]
[Black "Esipenko, Andrey"]
[WhiteFideId "14113406"]
[BlackFideId "24175439"]
[WhiteElo "2363"]
[BlackElo "2595"]
[Result "0-1"]
[Round "05"]
[TimeControl "180+1"]
[Date "2021.06.08"]
[WhiteClock "0:00:02"]
[BlackClock "0:00:47"]

1. d4 {[%clk 0:03:00]}  Nf6 {[%clk 0:02:57]} 2. c4 {[%clk 0:03:00]}  e6 {[%clk 0:02:56]} 3. Nc3 {[%clk 0:03:00]}  d5 {[%clk 0:02:53]} 4. cxd5 {[%clk 0:03:00]}  exd5 {[%clk 0:02:52]} 5. Bg5 {[%clk 0:02:59]}  Be7 {[%clk 0:02:50]} 6. e3 {[%clk 0:02:59]}  O-O {[%clk 0:02:49]} 7. Bd3 {[%clk 0:02:59]}  c6 {[%clk 0:02:49]} 8. Nge2 {[%clk 0:02:58]}  Nh5 {[%clk 0:02:47]} 9. h4 {[%clk 0:02:41]}  Re8 {[%clk 0:02:37]} 10. Qc2 {[%clk 0:02:33]}  h6 {[%clk 0:02:23]} 11. Bxe7 {[%clk 0:01:44]}  Qxe7 {[%clk 0:02:20]} 12. O-O-O {[%clk 0:01:42]}  Bg4 {[%clk 0:02:07]} 13. Kb1 {[%clk 0:01:40]}  Bd7 {[%clk 0:01:51]} 14. Bf5 {[%clk 0:01:25]}  Nf6 {[%clk 0:01:48]} 15. Ng3 {[%clk 0:01:08]}  Na6 {[%clk 0:01:43]} 16. a3 {[%clk 0:00:56]}  Nc7 {[%clk 0:01:41]} 17. h5 {[%clk 0:00:49]}  Rad8 {[%clk 0:01:25]} 18. Rh3 {[%clk 0:00:45]}  a6 {[%clk 0:01:25]} 19. Bxd7 {[%clk 0:00:34]}  Qxd7 {[%clk 0:01:24]} 20. Nf5 {[%clk 0:00:34]}  Nb5 {[%clk 0:01:23]} 21. Nxb5 {[%clk 0:00:29]}  axb5 {[%clk 0:01:23]} 22. Rg3 {[%clk 0:00:22]}  Nxh5 {[%clk 0:01:23]} 23. Nxh6+ {[%clk 0:00:22]}  Kf8 {[%clk 0:01:24]} 24. Rg5 {[%clk 0:00:17]}  Nf6 {[%clk 0:01:21]} 25. Nf5 {[%clk 0:00:15]}  g6 {[%clk 0:01:22]} 26. Nh4 {[%clk 0:00:13]}  Ne4 {[%clk 0:01:22]} 27. Re5 {[%clk 0:00:10]}  Rxe5 {[%clk 0:01:21]} 28. dxe5 {[%clk 0:00:10]}  Qg4 {[%clk 0:01:21]} 29. f3 {[%clk 0:00:09]}  Qxh4 {[%clk 0:01:19]} 30. fxe4 {[%clk 0:00:09]}  Qg3 {[%clk 0:01:15]} 31. exd5 {[%clk 0:00:09]}  Qxe5 {[%clk 0:01:08]} 32. dxc6 {[%clk 0:00:08]}  Rxd1+ {[%clk 0:01:07]} 33. Qxd1 {[%clk 0:00:08]}  bxc6 {[%clk 0:01:08]} 34. Qd8+ {[%clk 0:00:03]}  Kg7 {[%clk 0:01:08]} 35. Qd4 {[%clk 0:00:02]}  Qxd4 {[%clk 0:01:00]} 36. exd4 {[%clk 0:00:03]}  Kf6 {[%clk 0:00:58]} 37. b3 {[%clk 0:00:03]}  Ke6 {[%clk 0:00:58]} 38. Kc2 {[%clk 0:00:03]}  f5 {[%clk 0:00:54]} 39. a4 {[%clk 0:00:03]}  Kd6 {[%clk 0:00:47]} 40. a5 {[%clk 0:00:01]}  b4 {[%clk 0:00:47]} 41. Kd3 {[%clk 0:00:01]}  g5 {[%clk 0:00:47]} 42. Kc4 {[%clk 0:00:02]}  f4 {[%clk 0:00:47]} 0-1


[Site "https://www.chess.com"]